bitfinex-derivatives/quotes_SOLF0:USTF0_20250904
["timestamp","ask_amount","ask_price","bid_price","bid_amount"]
[1757008871954,10.31719964,204.5,204.43,7.86205624]
[1757008872152,7.3,204.5,204.43,7.86205624]
[1757008872453,0.85145947,204.52,204.43,10.87925588]
[1757008872651,0.85145947,204.52,204.44,7.83]
[1757008877455,315.18,204.55,204.47,7.83]
[1757008878258,315.18,204.55,204.49,0.03124154]
[1757008878857,7.97,204.6,204.5,7.41]
[1757008879052,121.18,204.59,204.5,7.41]
[1757008879253,7.97,204.58,204.5,7.41]
[1757008879453,7.97,204.58,204.52,0.03469015]
[1757008881356,10.98719964,204.58,204.52,0.03469015]
[1757008881955,7.97,204.58,204.52,0.03469015]
[1757008882353,129.13,204.58,204.52,0.03469015]
[1757008884059,121.14,204.57,204.52,0.03469015]
[1757008884258,129.11,204.57,204.52,7.44469015]
[1757008884460,7.97,204.57,204.52,7.44469015]
[1757008885162,121.1,204.58,204.52,7.44469015]
[1757008885364,7.97,204.56,204.52,7.44469015]
[1757008885759,121.08,204.57,204.52,7.44469015]
[1757008885966,7.97,204.56,204.52,7.44469015]
[1757008887169,7.97,204.56,204.52,0.03469015]
[1757008887465,121.08,204.57,204.52,0.03469015]
[1757008887658,7.97,204.56,204.52,0.03469015]
[1757008888161,3.01719964,204.54,204.52,0.03469015]
[1757008888367,7.97,204.53,204.52,0.03469015]
[1757008888565,7.97,204.53,204.41,7.41]
[1757008888862,10.98719964,204.49,204.41,7.41]
[1757008889070,7.97,204.47,204.41,7.41]
[1757008889568,10.98719964,204.47,204.41,7.41]
[1757008889768,8.00563365,204.46,204.41,7.41]
[1757008890368,7.97,204.45,204.41,7.41]
[1757008890668,0.03563365,204.46,204.39,3.01719964]
[1757008890865,0.03563365,204.46,204.4,7.41]
[1757008891666,0.03563365,204.46,204.42,3.01719964]
[1757008891864,0.03563365,204.46,204.43,7.41]
[1757008892267,0.03563365,204.46,204.42,3.01719964]
[1757008892461,0.03563365,204.46,204.43,7.41]
[1757008893369,0.03563365,204.46,204.4,7.41]
[1757008895273,8.00563365,204.46,204.42,7.41]
[1757008895674,7.97,204.45,204.41,7.44423545]
[1757008895974,0.03563365,204.46,204.42,7.41]
[1757008896364,0.03563365,204.46,204.41,0.03423545]
[1757008896564,0.03563365,204.46,204.42,7.41]
[1757008896565,3.01719964,204.44,204.42,7.41]
[1757008896769,7.97,204.43,204.41,0.03423545]
[1757008897571,3.01719964,204.44,204.41,0.03423545]
[1757008897870,7.97,204.43,204.41,0.03423545]
[1757008898373,3.01719964,204.44,204.41,0.03423545]
[1757008899275,7.97,204.43,204.41,0.03423545]
[1757008899464,3.01719964,204.44,204.41,0.03423545]
[1757008899669,7.97,204.43,204.41,0.03423545]
[1757008899974,3.01719964,204.44,204.41,0.03423545]
[1757008900176,7.97,204.43,204.41,0.03423545]
[1757008900376,3.01719964,204.44,204.41,0.03423545]
[1757008900576,7.97,204.43,204.41,0.03423545]
[1757008900777,3.01719964,204.44,204.41,0.03423545]
[1757008900978,7.97,204.43,204.41,0.03423545]
[1757008901278,3.01719964,204.44,204.41,0.03423545]
[1757008901576,7.97,204.43,204.41,0.03423545]
[1757008902879,3.01719964,204.44,204.41,0.03423545]
[1757008903075,7.97,204.43,204.41,0.03423545]
[1757008903275,3.01719964,204.44,204.41,0.03423545]
[1757008903478,1.9316245,204.42,204.41,0.03423545]
[1757008903774,9.9016245,204.42,204.41,0.03423545]
[1757008905580,1.9316245,204.42,204.41,0.03423545]
[1757008906780,9.9016245,204.42,204.41,0.03423545]
[1757008907884,1.9316245,204.42,204.41,0.03423545]
[1757008911093,8.02,204.45,204.41,0.03423545]
[1757008911283,1.9316245,204.42,204.41,0.03423545]
[1757008912298,9.9516245,204.42,204.41,0.03423545]
[1757008914891,0.03563365,204.46,204.41,0.03423545]
[1757008915193,8.02,204.43,204.41,0.03423545]
[1757008920495,8.05563365,204.46,204.42,8.03]
[1757008920688,0.03563365,204.46,204.43,8.03]
[1757008923496,0.03563365,204.46,204.42,1.9316245]
[1757008923792,1.96725815,204.46,204.41,0.03423545]
[1757008924197,8.02,204.45,204.41,0.03423545]
[1757008924394,1.9316245,204.44,204.41,0.03423545]
[1757008924595,9.9516245,204.42,204.41,0.03423545]
[1757008928694,0.03563365,204.46,204.41,0.03423545]
[1757008928898,8.02,204.42,204.41,0.03423545]
[1757008929696,1.9316245,204.43,204.41,0.03423545]
[1757008930001,8.02,204.44,204.41,0.03423545]
[1757008930604,0.03563365,204.46,204.42,1.9316245]
[1757008930803,0.03563365,204.46,204.45,9.9616245]
[1757008933900,0.03563365,204.46,204.43,1.9316245]
[1757008934111,0.03563365,204.46,204.45,9.9616245]
[1757008937905,0.03563365,204.46,204.45,1.9316245]
[1757008938508,0.03563365,204.46,204.45,9.2816245]
[1757008945919,0.03563365,204.46,204.45,7.35]
[1757008946311,0.03563365,204.46,204.45,9.2816245]
[1757008948824,9.7516245,204.57,204.46,7.35]
[1757008949022,7.82,204.57,204.51,1.9316245]
[1757008950025,1.9316245,204.58,204.52,0.03314259]
[1757008950226,7.82,204.57,204.52,0.03314259]
[1757008950424,1.9316245,204.58,204.52,0.03314259]
[1757008950622,9.7516245,204.58,204.52,0.03314259]
[1757008956128,7.82,204.55,204.52,0.03314259]
[1757008956738,1.9316245,204.56,204.52,0.03314259]
[1757008957227,7.82,204.55,204.52,0.03314259]
[1757008957424,9.7516245,204.58,204.52,0.03314259]
[1757008957626,7.82,204.58,204.52,0.03314259]
[1757008957832,7.82,204.58,204.53,1.9316245]
[1757008958029,2.78276118,204.59,204.53,1.9316245]
[1757008958327,7.82,204.58,204.53,1.9316245]
[1757008958533,2.78276118,204.59,204.53,1.9316245]
[1757008959229,7.82,204.58,204.53,1.9316245]
[1757008959427,10.60276118,204.59,204.53,1.9316245]
[1757008959735,9.7516245,204.59,204.53,1.9316245]
[1757008960424,1.9316245,204.57,204.52,0.03314259]
[1757008960629,7.82,204.54,204.52,0.03314259]
[1757008960826,1.9316245,204.55,204.52,0.03314259]
[1757008961326,7.82,204.54,204.52,0.03314259]
[1757008964736,7.82,204.58,204.52,0.03314259]
[1757008971744,7.99,204.55,204.52,0.03314259]
[1757008972146,3.01334869,204.56,204.52,0.03314259]
[1757008973350,7.99,204.55,204.52,0.03314259]
[1757008973846,3.01334869,204.56,204.52,0.03314259]
[1757008974249,7.99,204.55,204.52,0.03314259]
[1757008974448,3.01334869,204.56,204.52,0.03314259]
[1757008975041,7.99,204.55,204.52,0.03314259]
[1757008975242,3.01334869,204.56,204.52,0.03314259]
[1757008975454,7.99,204.55,204.52,0.03314259]
[1757008975746,3.01334869,204.56,204.52,0.03314259]
[1757008976245,3.04851467,204.56,204.52,0.03314259]
[1757008976451,7.99,204.55,204.52,0.03314259]
[1757008976651,3.04851467,204.56,204.52,0.03314259]
[1757008976853,7.99,204.55,204.52,0.03314259]
[1757008977052,3.04851467,204.56,204.52,0.03314259]
[1757008977356,7.99,204.55,204.52,0.03314259]
[1757008977755,3.04851467,204.56,204.52,0.03314259]
[1757008978054,7.99,204.55,204.52,0.03314259]
[1757008978356,3.04851467,204.56,204.52,0.03314259]
[1757008979155,7.99,204.55,204.52,0.03314259]
[1757008979355,3.04851467,204.56,204.52,0.03314259]
[1757008980053,7.99,204.55,204.52,0.03314259]
[1757008980862,3.04851467,204.56,204.52,0.03314259]
[1757008981249,7.99,204.55,204.52,0.03314259]
[1757008981454,3.04851467,204.56,204.52,0.03314259]
[1757008981857,0.03516598,204.56,204.52,0.03314259]
[1757008982156,7.99,204.55,204.52,0.03314259]
[1757008982357,0.03516598,204.56,204.52,0.03314259]
[1757008982855,8.02516598,204.56,204.52,0.03314259]
[1757008983056,0.03516598,204.56,204.53,7.67]
[1757008983361,0.03516598,204.56,204.52,0.03314259]
[1757008983362,0.03516598,204.56,204.54,12.23521225]
[1757008983559,0.03516598,204.56,204.55,4.56521225]
[1757008984162,0.03516598,204.56,204.55,12.23521225]
[1757008988362,0.03516598,204.56,204.55,7.67]
[1757008989354,0.03516598,204.56,204.55,12.23798739]
[1757008992765,0.03516598,204.56,204.55,12.23818406]
[1757008997561,0.03516598,204.56,204.55,12.71818406]
[1757009002364,0.03516598,204.56,204.55,12.23818406]
[1757009003067,7.67,204.65,204.56,7.95]
[1757009003269,7.67,204.65,204.58,7.95]
[1757009003965,7.67,204.65,204.59,4.55609554]
[1757009004161,7.67,204.65,204.59,7.95]
[1757009004364,7.67,204.67,204.6,0.03242525]
[1757009005167,7.67,204.67,204.61,7.95]
[1757009010478,0.85077254,204.7,204.61,10.96334869]
[1757009010773,0.85077254,204.7,204.62,7.95]
[1757009011481,7.67,204.71,204.64,7.95]
[1757009011978,7.67,204.71,204.65,0.03633523]
[1757009019977,7.67,204.69,204.65,0.03633523]
[1757009021171,7.67,204.72,204.65,0.03633523]
[1757009021376,7.67,204.7,204.65,0.03633523]
[1757009021979,10.68334869,204.7,204.65,0.03633523]
[1757009022679,3.01334869,204.7,204.65,0.03633523]
[1757009023178,7.67,204.69,204.65,0.03633523]
[1757009023577,3.01334869,204.7,204.65,0.03633523]
[1757009023780,7.67,204.69,204.65,0.03633523]
[1757009024180,3.01334869,204.7,204.65,0.03633523]
[1757009024384,7.67,204.69,204.65,0.03633523]
[1757009024580,3.01334869,204.7,204.65,0.03633523]
[1757009024980,7.67,204.69,204.65,0.03633523]
[1757009025185,3.01334869,204.7,204.65,0.03633523]
[1757009025385,7.67,204.69,204.65,0.03633523]
[1757009025585,7.67,204.66,204.65,0.03633523]
[1757009026987,9.59659132,204.66,204.65,0.03633523]
[1757009028079,7.67,204.66,204.65,0.03633523]
[1757009028280,9.59659132,204.66,204.65,0.03633523]
[1757009028684,127.51,204.66,204.65,0.03633523]
[1757009028884,9.59659132,204.66,204.65,0.03633523]
[1757009031888,1.92659132,204.66,204.65,0.03633523]
[1757009032290,7.6,204.66,204.65,0.03633523]
[1757009038398,1.92659132,204.67,204.54,11.98152154]
[1757009038600,9.52659132,204.62,204.55,4.56737312]
[1757009038900,9.52659132,204.62,204.56,4.56737312]
[1757009039095,7.6,204.61,204.57,4.56737312]
[1757009039292,1.92659132,204.62,204.58,4.56737312]
[1757009039495,116.86,204.63,204.54,7.88]
[1757009039496,1.92659132,204.6,204.54,7.88]
[1757009039697,7.6,204.59,204.58,0.03490741]
[1757009039903,9.52659132,204.59,204.58,0.03490741]
[1757009044103,7.6,204.59,204.58,0.03490741]
[1757009044409,1.92659132,204.6,204.58,0.03490741]
[1757009044602,7.6,204.59,204.58,0.03490741]
[1757009045999,7.6,204.59,204.5,9.80659132]
[1757009046201,7.6,204.54,204.51,4.5691491]
[1757009046406,7.6,204.54,204.48,1.92659132]
[1757009046601,7.6,204.52,204.49,4.56802307]
[1757009046805,9.52659132,204.53,204.47,7.88]
[1757009046998,7.6,204.52,204.48,4.56824763]
[1757009047196,1.92659132,204.53,204.49,4.56824763]
[1757009047395,7.6,204.5,204.44,7.88]
[1757009047599,1.92659132,204.49,204.45,4.56570709]
[1757009047908,10.98,204.56,204.41,7.88]
[1757009047909,1.92659132,204.47,204.41,7.88]
[1757009048207,7.6,204.46,204.42,12.44615491]
[1757009048509,7.6,204.46,204.43,4.56615491]
[1757009048701,7.6,204.46,204.4,1.92659132]
[1757009048901,1.92659132,204.47,204.41,4.56090822]
[1757009049102,1.96014884,204.49,204.43,7.88]
[1757009049503,1.92659132,204.49,204.43,7.88]
[1757009049702,0.03534173,204.48,204.42,1.92659132]
[1757009049904,0.03534173,204.48,204.43,7.88]
[1757009050508,0.03534173,204.48,204.42,1.92659132]
[1757009050703,0.03534173,204.48,204.44,7.88]
[1757009051006,0.03534173,204.48,204.42,1.92659132]
[1757009051406,1.92659132,204.47,204.43,4.55024292]
[1757009051609,7.6,204.46,204.4,9.80659132]
[1757009051807,7.6,204.46,204.42,7.88]
[1757009052008,0.03160438,204.45,204.4,1.92659132]
[1757009052308,0.03160438,204.45,204.41,4.54775135]
[1757009052505,0.03160438,204.45,204.39,1.92659132]
[1757009052809,1.9581957,204.45,204.38,7.88]
[1757009053010,1.9581957,204.45,204.39,4.54816804]
[1757009053207,7.6,204.44,204.4,7.91176871]
[1757009053513,9.52659132,204.44,204.4,7.91176871]
[1757009053706,0.03160438,204.45,204.41,7.88]
[1757009054011,7.63160438,204.45,204.41,7.88]
[1757009054210,7.63160438,204.45,204.4,0.03176871]
[1757009054410,7.63160438,204.45,204.41,7.88]
[1757009056306,7.6,204.43,204.4,0.03176871]
[1757009056605,1.92659132,204.44,204.4,0.03176871]
[1757009056807,7.6,204.43,204.4,0.03176871]
[1757009057007,1.92659132,204.44,204.4,0.03176871]
[1757009057706,7.69,204.43,204.4,0.03176871]
[1757009058201,7.69,204.43,204.4,8.06176871]
[1757009058604,7.69,204.43,204.4,0.03176871]
[1757009059802,1.92659132,204.42,204.4,0.03176871]
[1757009060010,7.69,204.41,204.4,0.03176871]
[1757009061107,1.92659132,204.42,204.4,0.03176871]
[1757009062212,7.69,204.41,204.4,0.03176871]
[1757009067213,9.61659132,204.43,204.4,0.03176871]
[1757009068818,9.61659132,204.43,204.4,8.06176871]
[1757009069917,7.69,204.43,204.4,8.06176871]
[1757009070316,0.03160438,204.45,204.41,1.92659132]
[1757009070520,0.03160438,204.45,204.44,9.95659132]
[1757009072020,0.03160438,204.45,204.44,1.92659132]
[1757009072316,0.03160438,204.45,204.43,8.03]
[1757009073325,7.69,204.44,204.4,9.98836003]
[1757009073622,7.69,204.44,204.41,8.03]
[1757009073925,0.03160438,204.45,204.4,1.95836003]
[1757009074114,7.72160438,204.45,204.41,8.03]
[1757009074317,7.72160438,204.45,204.4,1.95836003]
[1757009074522,7.72160438,204.45,204.41,8.03]
[1757009074717,7.72160438,204.45,204.4,1.95836003]
[1757009074922,7.69,204.44,204.41,8.03]
[1757009075726,0.03160438,204.45,204.41,8.03]
[1757009075926,7.72160438,204.45,204.41,8.03]
[1757009076229,0.03160438,204.45,204.43,8.03]
[1757009076422,0.03160438,204.45,204.42,1.92659132]
[1757009076726,0.03160438,204.45,204.43,8.03]
[1757009077534,7.69,204.44,204.4,9.98836003]
[1757009078128,7.69,204.44,204.4,8.06176871]
[1757009080430,7.69,204.44,204.41,8.03]
[1757009081226,0.03160438,204.45,204.41,8.03]
[1757009081428,0.03160438,204.45,204.41,1.92659132]
[1757009081628,0.03160438,204.45,204.42,12.5703283]
[1757009081927,0.03160438,204.45,204.41,1.92659132]
[1757009082232,0.03160438,204.45,204.42,4.54030399]
[1757009082432,0.03160438,204.45,204.43,12.57030399]
[1757009082725,0.03160438,204.45,204.43,8.03]
[1757009083028,0.03160438,204.45,204.44,4.5481427]
[1757009083824,0.03160438,204.45,204.44,12.5781427]
[1757009090735,0.03160438,204.45,204.44,12.59520435]
[1757009091539,7.5,204.53,204.45,7.48]
[1757009091836,7.5,204.53,204.46,4.56520435]
[1757009092032,7.5,204.53,204.47,4.56520435]
[1757009092334,7.5,204.55,204.48,4.56520435]
[1757009092529,0.03441159,204.52,204.49,4.56520435]
[1757009092726,7.5,204.51,204.5,4.56520435]
[1757009093136,7.5,204.51,204.48,0.03714697]
[1757009093435,0.03441159,204.52,204.49,4.56840321]
[1757009093635,0.03441159,204.52,204.48,7.51714697]
[1757009093832,7.53441159,204.52,204.49,12.04840321]
[1757009094032,0.03441159,204.52,204.5,12.04840321]
[1757009094335,0.03441159,204.52,204.49,7.48]
[1757009095035,7.5,204.51,204.48,0.03714697]
[1757009095336,0.03441159,204.52,204.49,12.04717043]
[1757009095633,7.53441159,204.52,204.49,7.48]
[1757009095828,7.5,204.51,204.48,0.03714697]
[1757009096036,7.5,204.51,204.48,7.51714697]
[1757009096228,0.03441159,204.52,204.49,4.56684313]
[1757009096435,0.03441159,204.52,204.5,12.04684313]
[1757009096735,0.03441159,204.52,204.48,0.03714697]
[1757009097039,0.03441159,204.52,204.49,12.04668239]
[1757009097238,0.03441159,204.52,204.5,4.56668239]
[1757009097439,0.03441159,204.52,204.49,7.48]
[1757009097733,0.03441159,204.52,204.5,4.56414373]
[1757009097939,0.03441159,204.52,204.48,0.03714697]
[1757009098140,0.03441159,204.52,204.49,4.56414373]
[1757009098340,0.03441159,204.52,204.5,12.04414373]
[1757009098536,0.03441159,204.52,204.5,7.48]
[1757009098836,7.5,204.51,204.48,0.03714697]
[1757009099031,7.5,204.51,204.49,4.56331564]
[1757009099231,7.5,204.51,204.48,7.51714697]
[1757009099431,7.5,204.51,204.49,4.56264282]
[1757009099643,7.5,204.51,204.48,7.51714697]
[1757009099943,7.5,204.51,204.49,4.56275461]
[1757009100134,7.5,204.51,204.48,0.03714697]
[1757009100330,3.04974501,204.52,204.48,0.03714697]
[1757009100529,7.5,204.51,204.48,0.03714697]
[1757009100739,3.04974501,204.52,204.48,0.03714697]
[1757009101038,0.03441159,204.52,204.49,12.04280618]
[1757009101233,0.03441159,204.52,204.51,7.48]
[1757009101430,0.03441159,204.52,204.51,12.04280618]
[1757009101635,0.03441159,204.52,204.48,0.03714697]
[1757009101835,7.53441159,204.52,204.48,0.03714697]
[1757009102039,7.53441159,204.52,204.48,7.51714697]
[1757009103136,7.53441159,204.52,204.49,7.48]
[1757009103736,60.67441159,204.52,204.48,7.51714697]
[1757009103938,7.5,204.51,204.48,7.51714697]
[1757009104237,75.14,204.5,204.48,0.03714697]
[1757009104438,7.5,204.49,204.48,0.03714697]
[1757009105037,128.42,204.49,204.48,0.03714697]
[1757009105236,7.98,204.49,204.48,0.03714697]
[1757009105430,10.99533342,204.49,204.48,0.03714697]
[1757009105629,131.43533342,204.49,204.48,0.03714697]
[1757009105935,10.99533342,204.49,204.48,0.03714697]
[1757009106131,131.43533342,204.49,204.48,0.03714697]
[1757009107343,10.99533342,204.49,204.48,0.03714697]
[1757009107644,130.91533342,204.49,204.48,0.03714697]
[1757009108739,7.5,204.48,204.38,7.48]
[1757009108936,120.38,204.47,204.39,4.56310656]
[1757009109137,120.38,204.47,204.4,4.56310656]
[1757009109335,7.5,204.48,204.41,4.56310656]
[1757009109535,30.3,204.47,204.38,7.48]
[1757009109839,0.03256675,204.45,204.4,7.48]
[1757009110032,0.03256675,204.45,204.42,7.48]
[1757009110632,79.18,204.44,204.42,7.48]
[1757009110945,0.03256675,204.45,204.42,7.48]
[1757009111142,101.74,204.44,204.42,7.48]
[1757009111643,120.36,204.43,204.39,7.48]
[1757009111843,120.39256675,204.45,204.39,7.48]
[1757009112043,0.03256675,204.45,204.42,7.48]
[1757009112439,0.03256675,204.45,204.41,3.01533342]
[1757009112440,0.03256675,204.45,204.44,7.48]
[1757009112747,7.5,204.55,204.45,7.48]
[1757009113049,26.02,204.54,204.47,3.01533342]
[1757009113343,26.02,204.54,204.48,12.04326478]
[1757009113545,26.02,204.54,204.5,7.48]
[1757009113746,26.02,204.54,204.48,7.48]
[1757009113943,26.02,204.54,204.49,4.56280538]
[1757009114140,3.01533342,204.57,204.5,12.04280538]
[1757009114344,7.5,204.56,204.5,7.48]
[1757009114544,127.94,204.56,204.5,7.48]
[1757009115041,120.44,204.55,204.5,7.48]
[1757009115246,127.94,204.55,204.5,7.48]
[1757009115540,7.5,204.55,204.48,7.48]
[1757009115747,120.42,204.54,204.5,7.48]
[1757009115949,120.42,204.54,204.52,7.48]
[1757009116245,7.5,204.59,204.52,7.48]
[1757009116636,120.4,204.58,204.52,7.48]
[1757009118645,7.5,204.59,204.52,7.48]
[1757009118846,120.4,204.58,204.52,7.48]
[1757009119049,7.5,204.59,204.52,7.48]
[1757009119245,120.36,204.58,204.52,7.48]
[1757009119647,7.5,204.59,204.52,7.48]
[1757009119847,120.36,204.58,204.52,7.48]
[1757009120044,7.5,204.59,204.52,7.48]
[1757009120446,120.32,204.58,204.52,7.48]
[1757009120645,7.5,204.59,204.52,7.48]
[1757009120946,120.3,204.58,204.52,7.48]
[1757009121249,7.48,204.6,204.51,7.89]
[1757009121548,3.01533342,204.65,204.53,3.04923522]
[1757009121847,113.52,204.64,204.55,7.89]
[1757009122045,7.48,204.64,204.55,7.89]
[1757009122243,120.32,204.63,204.56,8.39147556]
[1757009122439,120.34,204.62,204.57,8.38876666]
[1757009122645,7.48,204.64,204.54,7.89]
[1757009122950,7.48,204.64,204.56,7.89]
[1757009123146,78.22,204.63,204.57,8.38873613]
[1757009123339,11.18,204.62,204.56,7.89]
[1757009123540,7.48,204.64,204.56,7.89]
[1757009123541,7.48,204.64,204.58,7.89]
[1757009123746,12.92,204.63,204.57,7.89]
[1757009124045,10.49533342,204.68,204.57,7.89]
[1757009124046,10.49533342,204.68,204.58,8.38443375]
[1757009124245,37.72,204.67,204.59,16.27443375]
[1757009124446,37.72,204.67,204.59,7.89]
[1757009124644,37.72,204.67,204.61,0.03639841]
[1757009124847,7.48,204.65,204.61,0.03639841]
[1757009125047,7.48,204.65,204.61,7.92639841]
[1757009125255,7.48,204.69,204.63,7.89]
[1757009125745,120.3,204.7,204.64,0.03628038]
[1757009126253,7.48,204.69,204.64,0.03628038]
[1757009127548,120.3,204.7,204.64,0.03628038]
[1757009127948,7.48,204.69,204.64,0.03628038]
[1757009128354,120.3,204.7,204.64,0.03628038]
[1757009129449,7.48,204.71,204.65,7.89]
[1757009129955,7.48,204.69,204.65,7.89]
[1757009130455,7.48,204.69,204.64,0.03628038]
[1757009130651,7.48,204.69,204.65,7.89]
[1757009131252,7.48,204.69,204.64,0.03628038]
[1757009131653,7.48,204.69,204.65,7.89]
[1757009132251,120.26,204.69,204.64,0.03628038]
[1757009132453,120.26,204.69,204.65,7.89]
[1757009132655,120.26,204.69,204.64,0.03628038]
[1757009132854,120.26,204.69,204.65,7.89]
[1757009133162,120.26,204.68,204.65,7.89]
[1757009134959,120.24,204.68,204.65,7.89]
[1757009137255,7.48,204.72,204.65,7.89]
[1757009137460,7.48,204.7,204.65,7.89]
[1757009137657,120.16,204.71,204.65,7.89]
[1757009138155,7.48,204.7,204.65,7.89]
[1757009138658,127.64,204.71,204.65,7.89]
[1757009138858,7.48,204.71,204.65,7.89]
[1757009139158,7.48,204.69,204.65,7.89]
[1757009139459,127.58,204.69,204.65,7.89]
[1757009140350,7.48,204.68,204.65,7.89]
[1757009140962,127.54,204.68,204.65,7.89]
[1757009141858,127.52,204.68,204.65,7.89]
[1757009142554,127.5,204.68,204.65,7.89]
[1757009143557,7.48,204.68,204.65,7.89]
[1757009143757,127.48,204.68,204.65,7.89]
[1757009144062,7.48,204.72,204.65,7.89]
[1757009144562,27.06,204.71,204.65,7.89]
[1757009144764,7.48,204.72,204.65,7.89]
[1757009144963,52.72,204.7,204.65,7.89]
[1757009145861,52.72,204.7,204.64,3.0516138]
[1757009146162,52.72,204.7,204.64,10.9416138]
[1757009146765,76.88,204.7,204.64,10.9416138]
[1757009146960,106.54,204.71,204.64,10.9416138]
[1757009147365,126.78,204.71,204.65,7.89]
[1757009147565,126.78,204.71,204.64,3.0516138]
[1757009147566,7.48,204.7,204.67,7.89]
[1757009147765,7.91,204.73,204.7,8.06]
[1757009147958,1.9619,204.74,204.69,1.92537381]
[1757009148362,7.91,204.73,204.69,1.92537381]
[1757009148661,1.9619,204.74,204.69,1.92537381]
[1757009149163,1.9619,204.74,204.66,8.06]
[1757009149464,7.91,204.73,204.69,1.92537381]
[1757009149960,119.94,204.73,204.69,9.98537381]
[1757009150166,7.91,204.72,204.69,9.98537381]
[1757009154466,7.91,204.72,204.7,8.06]
[1757009155562,7.91,204.72,204.71,1.92537381]
[1757009156170,7.91,204.72,204.7,8.06]
[1757009156467,9.8719,204.74,204.71,9.98537381]
[1757009157270,1.9619,204.74,204.72,8.06]
[1757009158664,7.91,204.81,204.73,9.98537381]
[1757009158970,124.19,204.83,204.77,1.92537381]
[1757009160165,1.92537381,204.82,204.77,1.92537381]
[1757009160369,7.91,204.81,204.75,9.98537381]
[1757009160673,7.91,204.81,204.69,8.06]
[1757009160874,7.91,204.79,204.73,1.92537381]
[1757009161062,1.92537381,204.8,204.74,4.52981634]
[1757009161371,7.91,204.79,204.73,1.92537381]
[1757009161770,7.91,204.79,204.74,4.53059959]
[1757009161972,7.91,204.79,204.72,1.92537381]
[1757009162269,7.91,204.75,204.69,1.92537381]
[1757009162566,7.91,204.75,204.7,8.35450409]
[1757009162773,7.91,204.75,204.71,12.59244879]
[1757009162974,7.91,204.75,204.72,8.06]
[1757009163270,7.91,204.76,204.7,1.92537381]
[1757009163474,1.92537381,204.78,204.72,8.06]
[1757009163678,7.91,204.77,204.72,1.92537381]
[1757009163870,14.23537381,204.78,204.72,9.98537381]
[1757009164064,7.91,204.78,204.72,9.98537381]
[1757009164265,7.91,204.78,204.73,12.5938367]
[1757009164469,7.91,204.79,204.74,1.92537381]
[1757009164663,58.08,204.8,204.74,1.92537381]
[1757009164967,65.99,204.8,204.76,1.92537381]
[1757009165168,7.91,204.79,204.76,1.92537381]
[1757009165971,7.91,204.79,204.74,8.06]
[1757009166170,7.91,204.79,204.76,8.06]
[1757009166365,1.92537381,204.82,204.75,1.92537381]
[1757009166570,28.54555398,204.84,204.77,1.92537381]
[1757009167473,1.92537381,204.83,204.77,1.92537381]
[1757009167673,7.91,204.82,204.77,1.92537381]
[1757009168071,1.92537381,204.83,204.77,1.92537381]
[1757009168272,7.91,204.82,204.77,1.92537381]
[1757009169068,9.83537381,204.83,204.77,1.92537381]
[1757009169271,7.91,204.83,204.77,1.92537381]
[1757009169670,7.91,204.83,204.75,8.06]
[1757009169970,7.91,204.83,204.77,1.92537381]
[1757009171274,7.91,204.81,204.77,1.92537381]
[1757009171472,1.92537381,204.82,204.77,1.92537381]
[1757009172077,7.91,204.82,204.77,1.92537381]
[1757009172377,1.92537381,204.83,204.77,1.92537381]
[1757009172676,7.91,204.82,204.77,1.92537381]
[1757009173276,1.92537381,204.81,204.75,9.98537381]
[1757009173580,7.91,204.82,204.75,9.98537381]
[1757009173773,1.92537381,204.81,204.75,9.98537381]
[1757009174173,7.91,204.82,204.75,9.98537381]
[1757009174378,1.92537381,204.81,204.75,9.98537381]
[1757009174878,9.83537381,204.82,204.75,9.98537381]
[1757009175279,7.91,204.82,204.75,9.98537381]
[1757009175979,9.83537381,204.83,204.77,1.92537381]